Cogmind - Beta 13 @@@ ROGUE MODE // 2024.07.07 @ 11:33:22 Player: OmnomBrains Result: Destroyed by Y-45 Defender with Beam Rifle Performance ------------- Evolutions (1) 500 Regions Visited (3) 600 Robots Destroyed (62) 310 Value Destroyed (1469) 1469 Prototype IDs (3) 60 Alien Tech Used (0) 0 Bonus (66) 66 TOTAL SCORE: 3005 Bonus ------- High Alert Combat Kills 66 Cogmind --------- Core Integrity 0/400 Matter 199/300 Energy 98/100 System Corruption 1% Temperature Cool (10) Movement Walking (190) Ox1 Location -9/Storage Parts ------- > --- POWER (1) -------- (None) > --- PROPULSION (3) --- Aluminum Leg > --- UTILITY (3) ------ Medium Storage Unit Structural Scanner Melee Analysis Suite > --- WEAPON (2) ------- Mini Grenade Launcher > --- INVENTORY (10) --- Improved Ion Engine Cooling System Structural Scanner Shield Generator Field Recycling Unit (19) Datajack Peak State ------------ > --- POWER ------------ Cooled Ion Engine > --- PROPULSION ------- Aluminum Leg Aluminum Leg Improved Aluminum Leg > --- UTILITY ---------- Medium Storage Unit Structural Scanner Medium Armor Plating > --- WEAPON ----------- Advanced Beam Cannon Autogun > --- INVENTORY -------- Ion Engine Aluminum Leg Cooling System Shield Generator Field Recycling Unit Medium Laser Assault Rifle Mini Grenade Launcher Datajack [Rating: 17] Favorites ----------- Power Ion Engine Engine Ion Engine Propulsion Aluminum Leg Leg Aluminum Leg Utility Seismic Detector Device Seismic Detector Storage Medium Storage Unit Processor Melee Analysis Suite Protection Medium Armor Plating Weapon Assault Rifle Energy Gun Medium Laser Energy Cannon Advanced Beam Cannon Ballistic Gun Assault Rifle Launcher Mini Grenade Launcher Build | -11 -10 -9 -9 ------- Run | Yrd Mat Mat Sto Slots Evolved 2 | . . 2 . Power . | . . . . Propulsion 1 | . . 1 . Utility 1 | . . 1 . Weapon . | . . . . Parts Attached 83 | 7 14 53 9 Power 7 | 1 2 4 . Engine 7 | 1 2 4 . Core . | . . . . Reactor . | . . . . Propulsion 21 | 2 4 13 2 Treads . | . . . . Leg 21 | 2 4 13 2 Wheel . | . . . . Hover . | . . . . Flight . | . . . . Utility 20 | 2 . 16 2 Device 13 | 1 . 11 1 Storage 2 | 1 . 1 . Processor 2 | . . 1 1 Hackware . | . . . . Protection 3 | . . 3 . Artifact . | . . . . Weapon 35 | 2 8 20 5 Energy Gun 4 | 1 1 2 . Energy Cannon 4 | . . 3 1 Ballistic Gun 15 | 1 4 8 2 Ballistic Cannon . | . . . . Launcher 12 | . 3 7 2 Special Weapon . | . . . . Impact Weapon . | . . . . Slashing Weapon . | . . . . Piercing Weapon . | . . . . Special Melee Weapon . | . . . . Unidentified Prototypes 3 | . . 3 . Parts Lost 12 | . . 4 8 Power 2 | . . 1 1 Propulsion 3 | . . . 3 Utility 4 | . . 3 1 Weapon 3 | . . . 3 Highest Loss Streak 8 | . . 1 8 To Critical Strikes . | . . . . Average Slot Usage (%) 97 | . 97 98 94 Engine 11 | . 13 10 10 Leg 30 | . 27 33 30 Device 15 | . 14 17 11 Storage 11 | . 14 11 11 Protection 2 | . . 3 8 Energy Gun 6 | . 13 2 8 Energy Cannon 5 | . . 8 . Ballistic Gun 10 | . 12 9 10 Launcher 1 | . . 1 1 Naked Turns . | . . . . Heaviest Build 34 | 15 15 34 32 Greatest Support 33 | 20 20 33 33 Greatest Overweight (x) 3 | . 3 1 1 Average Overweight (x) . | . . . . Largest Inventory Capacity 10 | 8 8 10 10 Average Capacity 9 | 6 8 9 10 Most Carried 10 | 5 8 10 10 Average Carried 8 | 3 7 9 9 Final Capacity 10 | 8 8 10 10 Final Carried 9 | 4 8 9 6 Class Distribution -------------------- 52% | Scavenger-Mutant 47% | Mutant Dominant Class ---------------- Mutant | -10/Materials Scavenger-Mutant | -9/Materials Mutant | -9/Storage Resources | -11 -10 -9 -9 ----------- Run | Yrd Mat Mat Sto Matter Collected 1191 | 231 218 630 112 Remotely . | . . . . Salvage Created 1706 | 45 357 919 385 Parts 135 | 9 29 77 20 Haulers Intercepted 3 | . 1 2 . Recyclers Shooed 3 | . . 2 1 Parts Field Recycled 33 | . . 33 . Retrieved Matter 149 | . . 149 . Parts Self-Destructed . | . . . . Prevented . | . . . . Kills | -11 -10 -9 -9 ------- Run | Yrd Mat Mat Sto Combat Hostiles Destroyed 40 | . 9 24 7 Guns 18 | . 5 7 6 Cannons 7 | . . 7 . AOE 14 | . 4 9 1 Classes Destroyed 10 | 1 4 4 1 Worker 2 | . . 1 1 Builder 7 | . . 7 . Tunneler 5 | 2 2 1 . Hauler 3 | . 1 2 . Mechanic 1 | . . 1 . Watcher 4 | . 1 3 . Swarmer 9 | . 3 6 . Grunt 25 | . 6 15 4 Duelist 1 | . . . 1 Sentry 5 | . . 3 2 Best Kill Streak 11 | 2 4 11 3 Combat Bots Only 5 | . 3 5 3 Max Kills in Single Turn 4 | 1 2 4 1 Gunslinging . | . . . . Exploded 2 | . 2 2 1 Melee . | . . . . Uniques/NPCs Destroyed . | . . . . Combat | -11 -10 -9 -9 -------- Run | Yrd Mat Mat Sto Hostile Shots Fired 216 | . 23 111 82 Missed 56 | . 7 29 20 Damage Taken 2137 | . 201 950 986 Core 422 | . 21 131 270 Absorbed by Shields . | . . . . Regen/Repaired (Parts) 87 | . 87 . . Core Remaining (%) 95 | 100 91 . . Volleys Fired 117 | 3 24 56 34 Largest 2 | 2 2 2 2 Hottest 98 | 70 80 98 88 Shots Fired 215 | 6 45 111 53 Gun 145 | 6 39 53 47 Cannon 45 | . . 43 2 Launcher 25 | . 6 15 4 Special . | . . . . Kinetic 94 | 3 18 41 32 Thermal 69 | 3 21 43 2 Explosive 25 | . 6 15 4 Electromagnetic 27 | . . 12 15 Robot Hit Streak 14 | 3 7 7 14 Robot Miss Streak 6 | 1 3 6 6 Penetration Max . | . . . . Secondary Targets 1 | . . . 1 Max Gunslinging Chain 1 | . . . 1 Shots Hit Robots 115 | 5 25 54 31 Core Hits 89 | 2 20 52 15 Critical Kills 1 | . . 1 . Critical Parts Destroyed . | . . . . Critical Strikes 1 | . . 1 . Meltdown 1 | . . 1 . Melee Attacks . | . . . . Impact . | . . . . Slashing . | . . . . Piercing . | . . . . Sneak Attacks . | . . . . Combat Hostiles . | . . . . Follow-up Attacks . | . . . . Damage Inflicted 3959 | 60 626 2597 676 Guns 1226 | 60 302 439 425 Cannons 534 | . . 492 42 Explosions 2105 | . 308 1613 184 Melee . | . . . . Ramming 94 | . 16 53 25 Kinetic 828 | 36 163 333 296 Thermal 697 | 24 139 492 42 Explosive 2105 | . 308 1613 184 Electromagnetic 235 | . . 106 129 Impact . | . . . . Slashing . | . . . . Piercing . | . . . . Highest Corruption 1 | . 1 1 1 Average Corruption 1 | . 1 1 1 Corruption Purged . | . . . . Corruption Blocked . | . . . . Effects 7 | . 1 . 6 Matter Fused 1 | . . . 1 Heat Flow Errors 3 | . 1 . 2 Parts Rejected 1 | . . . 1 Data Loss (minor) 1 | . . . 1 Alerts 1 | . . . 1 Overload Shots . | . . . . Overflow Damage 69 | . 20 34 15 Projectiles 6 | . . 6 . Explosions 63 | . 20 28 15 Melee . | . . . . Knockbacks 1 | . 1 . . Impact 1 | . 1 . . Kinetic . | . . . . Secondary . | . . . . Self-Inflicted Damage 143 | . 35 50 58 Shots 5 | . 1 2 2 Rammed . | . . . . Targets Rammed 16 | . 4 8 4 Kicked 16 | . 4 8 4 Crushed . | . . . . Highest Temperature 428 | 18 131 428 277 Average Temperature 54 | 9 20 62 67 Received Heat Transfer 750 | . 81 384 285 Effects 1 | . . 1 . Damage (minor) 1 | . . 1 . Siege Activations . | . . . . Robots Corrupted . | . . . . Combat Hostiles . | . . . . Parts Fried . | . . . . Impact Corruptions . | . . . . Robots Melted 1 | . . 1 . Combat Hostiles 1 | . . 1 . Parts Melted 2 | . 1 1 . Heat Transferred 1443 | 74 407 888 74 Parts Sabotaged . | . . . . Parts Stolen . | . . . . Parts Stripped . | . . . . Power Chain Reactions . | . . . . Alert | -11 -10 -9 -9 ------- Run | Yrd Mat Mat Sto Peak Influence 497 | 10 284 497 458 Initial 183 | . 6 119 183 Average 233 | 2 99 311 269 Maximum Alert Level 2 | . 1 2 2 Low Security (%) 44 | 100 81 26 18 Level 1 36 | . 18 39 71 Level 2 19 | . . 33 9 Level 3 . | . . . . Level 4 . | . . . . Level 5 . | . . . . High Security . | . . . . Max Security . | . . . . Squads Dispatched 7 | . 3 1 3 Investigation 3 | . 2 1 . Extermination . | . . . . Reinforcement 2 | . 1 . 1 Assault . | . . . . Garrison 2 | . . . 2 Intercept . | . . . . Searches Triggered . | . . . . Construction Impeded . | . . . . Haulers Reinforced . | . . . . Active Scanning Responses . | . . . . Cargo Convoy Interrupts . | . . . . Stealth | -11 -10 -9 -9 --------- Run | Yrd Mat Mat Sto Distress Signals 5 | . 1 1 3 Communications Jammed . | . . . . Distress Signals . | . . . . Times Spotted 63 | . 15 31 17 Peak Tracking Total 9 | . 3 6 9 Tactical Retreats 1 | . . . 1 Traps | -11 -10 -9 -9 ------- Run | Yrd Mat Mat Sto Traps Triggered 4 | . 3 1 . Indirectly . | . . . . Trap Hack Attempts . | . . . . Triggered . | . . . . Disarmed . | . . . . Reprogrammed . | . . . . Reused . | . . . . Traps Extracted . | . . . . Installed . | . . . . Triggered . | . . . . Machines | -11 -10 -9 -9 ---------- Run | Yrd Mat Mat Sto Machines Disabled 5 | . . 4 1 Max in Single Turn 1 | . . 1 1 Machines Repaired . | . . . . Machines Dismantled . | . . . . Machines Sabotaged . | . . . . Overloaded Fab Kills . | . . . . Hacking | -11 -10 -9 -9 --------- Run | Yrd Mat Mat Sto Machines Accessed 15 | . 6 7 2 Terminals 11 | . 5 4 2 Fabricators . | . . . . Repair Stations 1 | . 1 . . Recycling Units 2 | . . 2 . Scanalyzers 1 | . . 1 . Garrison Access . | . . . . Total Hacks 49 | . 25 19 5 Successful 26 | . 12 10 4 Failed 23 | . 13 9 1 Catastrophic 4 | . 3 1 . Database Lockouts . | . . . . Manual 16 | . 9 5 2 Terminals 32 | . 18 9 5 Fabricators . | . . . . Repair Stations 7 | . 7 . . Recycling Units 7 | . . 7 . Scanalyzers 3 | . . 3 . Garrison Access . | . . . . Terminal Hacks 14 | . 6 4 4 Open Door 1 | . . . 1 Unreport Threat 1 | . . 1 . Locate Traps 4 | . 2 1 1 Dispatch Records 2 | . . 1 1 Recall Investigation 1 | . 1 . . Hauler Manifests 1 | . 1 . . Zone Layout 4 | . 2 1 1 Fabricator Hacks . | . . . . Repair Station Hacks 6 | . 6 . . Scan Component 3 | . 3 . . Repair 3 | . 3 . . Recycling Unit Hacks 4 | . . 4 . Process 1 | . . 1 . Report Inventory 2 | . . 2 . Retrieve Matter 1 | . . 1 . Scanalyzer 2 | . . 2 . Insert Component 1 | . . 1 . Analyze 1 | . . 1 . Garrison Access Hacks . | . . . . Unauthorized Hacks . | . . . . Terminals . | . . . . Fabricators . | . . . . Repair Stations . | . . . . Recycling Units . | . . . . Scanalyzers . | . . . . Garrison Access . | . . . . Data Cores Recovered . | . . . . Used . | . . . . Hacking Detections 11 | . 5 5 1 Full Trace Events 7 | . 5 2 . Feedback Events 2 | . 1 1 . Corruption 2 | . 1 1 . Feedback Blocked . | . . . . Robot Schematics Acquired . | . . . . Robots Built . | . . . . Authchips . | . . . . Time . | . . . . Total Robot Build Rating . | . . . . Part Schematics Acquired 1 | . . 1 . Parts Built . | . . . . Authchips . | . . . . Time . | . . . . Total Part Build Rating . | . . . . Parts Repaired 3 | . 3 . . Time 78 | . 78 . . Parts Recycled . | . . . . Recycled Matter 124 | . . 124 . Retrieved Matter 124 | . . 124 . Retrieved Components . | . . . . Parts Scanalyzed 1 | . . 1 . Part Schematics Acquired 1 | . . 1 . Parts Damaged . | . . . . Bothacking | -11 -10 -9 -9 ------------ Run | Yrd Mat Mat Sto Used RIF Installer . | . . . . Robots Hacked . | . . . . Non-combat . | . . . . Combat . | . . . . Robot Hacks Applied . | . . . . Relay Couplers Released . | . . . . Fabnet Peak Effective % . | . . . . Robots Rewired . | . . . . Allies Hacked . | . . . . Hacks Repelled . | . . . . Allies | -11 -10 -9 -9 -------- Run | Yrd Mat Mat Sto Total Allies . | . . . . Largest Group . | . . . . Highest-Rated Group . | . . . . Highest-Rated Ally . | . . . . Total Orders . | . . . . Ally Attacks . | . . . . Total Damage . | . . . . Kills . | . . . . Allies Corrupted . | . . . . Allies Melted . | . . . . Intel | -11 -10 -9 -9 ------- Run | Yrd Mat Mat Sto Robot Analysis Total . | . . . . Derelict Logs Recovered . | . . . . Drone Launches . | . . . . Drone Recoveries . | . . . . Exploration | -11 -10 -9 -9 ------------- Run | Yrd Mat Mat Sto Turns Passed 2337 | 75 689 1280 293 Spaces Moved 1430 | 45 451 778 156 Core 10 | 6 4 . . Treads . | . . . . Legs 1420 | 39 447 778 156 Wheels . | . . . . Hover . | . . . . Flight . | . . . . Fastest Speed 50 | 50 120 120 120 Average Speed 122 | 110 120 125 122 Slowest Speed 200 | 120 200 190 190 Overloaded Moves . | . . . . Propulsion Burnouts . | . . . . Robots Hopped . | . . . . Cave-ins Triggered . | . . . . Exploration Rate (%) 43 | 4 70 63 35 Regions Visited 3 Branch Regions 1 Pre-discovered Areas . | . . . . Known Exits Taken . | . . . . Unknown Exits Taken 3 | 1 1 1 . Scrap Searched . | . . . . Spaces Dug . | . . . . Terrain Destroyed 162 | . 48 73 41 Melee . | . . . . Projectile . | . . . . AOE 162 | . 48 73 41 Terrain Rammed . | . . . . Walls Destroyed . | . . . . Machines Disabled . | . . . . Actions | -11 -10 -9 -9 --------- Run | Yrd Mat Mat Sto Total 1784 | 62 551 961 210 Wait 70 | . 40 29 1 Move 1427 | 44 450 777 156 Hop . | . . . . Pick Up 44 | 8 12 21 3 Fast Attach 9 | 3 3 2 1 Attach 20 | 4 5 7 4 Detach 1 | . 1 . . Swap 54 | . 6 44 4 Drop 26 | . 6 17 3 Fire 117 | 3 24 56 34 Melee . | . . . . Ram . | . . . . Kick 16 | . 4 8 4 Crush . | . . . . Escape Stasis . | . . . . Rewire . | . . . . Trap . | . . . . Miscellaneous . | . . . . Route ------- -11/Scrapyard -10/Materials (discovered 2 exits: *Mat x2) -9/Materials (discovered 2 exits: [*Min] / *Sto) -9/Storage History --------- Turn | Location | Event 8 | -11/Scrapyard | Discovered new exit (range 16) 76 | -11/Scrapyard | Entered Materials 236 | -10/Materials | Discovered new exit (range 16) 315 | -10/Materials | Build established: Mutant 697 | -10/Materials | Repaired Med. Laser? 713 | -10/Materials | Repaired Ion Engine 739 | -10/Materials | Repaired Assault Rifle 751 | -10/Materials | Discovered new exit (range 12) 765 | -10/Materials | Entered another Materials area 765 | -9/Materials | Evolved 2 slots: Propulsion x1, Utility x1 1070 | -9/Materials | Build established: Scavenger-Mutant 1464 | -9/Materials | Discovered new exit (range 12) 1984 | -9/Materials | Discovered new exit (range 6) 2045 | -9/Materials | Entered Storage 2100 | -9/Storage | Garrison activated, responded to threat 2269 | -9/Storage | Core integrity fell below 50% 2293 | -9/Storage | Garrison activated, responded to threat 2321 | -9/Storage | Core integrity fell below 20% 2338 | -9/Storage | Destroyed by Y-45 Defender with Beam Rifle Last Messages --------------- Aluminum Leg destroyed. Cld. Ion Engine destroyed. Destroyed Cld. Ion Engine. G-34 Mercenary destroyed. Transfer Shaft disabled. The unstable cave ceiling collapses. Assault Rifle destroyed. The unstable cave ceiling collapses. R-06 Scavenger collects Aluminum Leg. The unstable cave ceiling collapses. K-01 Serf collects debris. U-05 Engineer lays Concrete. U-05 Engineer builds a Wall. U-05 Engineer lays Concrete. K-01 Serf collects debris. System corrupted: Component data lost. Aluminum Leg destroyed. U-05 Engineer builds a Wall. U-05 Engineer lays Concrete. K-01 Serf collects debris. Map ----- +----------------------------------------------------+ | """ ????????????????????????????????????????????? | | """ ????????????????????????????????????????????? | | """ ??? ##??????????????????????????????????????? | | ??? ##??????????????????????????????????????? | | """ ??? ##??????????????????????????????????????? | | """ ??? # ? T###????????????????????????????????? | | """ ?? + #####???????????????????????????????? | | ?? ##### ########?????????????????????????? | | ?? ### #######? ##?????????????????????? | | ? ### ### ###????????????????????? | | # ### !% ### ###????????????????????? | | ###### ### ] # ????????????????????? | | % #### [*+ ????????????????????????? | | / %# ?????????????????????????? | | #### = !# "????? ?????????????????? | | ####/######## [= # """ ##?????????????? | | ]####[ % # ##?????????????? | | ###########+## #?????????????? | | """ """ + ??????????????? | | """ """ ####### % a ??????????????? | | """ """ #######%####r##+###### ??????????????? | | ##### # #ukk ######?????????????????? | | ##### # """ ###????????????????????? | | #### "" #T????????????????????? | | ####+######## Y"""^ ###????????????????????? | | # ######### kY Y ^@###????????????????????? | | # ##### # """ ##?????????????????????? | | + % """ ##?????????????????????? | | # ##### # """ ##?????????????????????? | | #+## ######+## # ##?????????????????????? | | + ##? ###" "#####?????????????????????? | | #######???? ###"R"#####?????????????????????? | | #######??? ?##"""##????????????????????????? | | ##?????? ########????????????????????????? | | ##??????################?????????????????????????? | | | | | | | | | | | | | | | | | | | | | | | | | | | | | | | +----------------------------------------------------+ Best States ------------- Heat Dissipation 28 Energy Generation 14 Energy Capacity 280 Matter Stores 300 Matter Capacity 300 Sight Range 16 Robot Scan Range 14 Terrain Scan Range 16 Terrain Scan Density 85 Armor Coverage 225 Evasion (%) 55 Melee Accuracy 5 Item Schematics ----------------- Field Recycling Unit | -9/Materials | Scanalyzed Robot Schematics ------------------ None Fabricated ------------ Nothing Alien Tech Used ----------------- None Achievements -------------- None Challenges ------------ None Game ------ Seed NodeArcGenerator Manual? 0 Play Time 00:35:17 Cumulative 12.5 hours Start 2024.07.06 @ 22:07:15 End 2024.07.07 @ 11:33:22 Sessions 2 Manual Loads 0 Difficulty Rogue Special Mode None Game No. 17 Rogue 17 Adventurer 0 Explorer 0 Win Type - Total 0 Types 0/0/0/0/0/0/0/0/0 Lore% 13 Gallery% 15 Achievement% 14 Wizard Run 0 Options --------- Layout 1 ASCII 0 Keyboard 0 Movement Mouse Keybinds 0 Fullscreen 1 Font 24/Terminus Map View 50x35 Zoom Use 0% Tactical HUD 0 Map Filters NONE Filters NONE Steam 1 RUN: 01e00dcd-4e19-4b62-8808-5e7683e80a14